fUST/lending_fUST_20250924
["ID","MTS","AMOUNT","RATE_DAILY","PERIOD"]
[387217819,1758653447429,-480.0,0.00019726,2]
[387217820,1758653447438,-3065.16,0.00019726,2]
[387217821,1758653447448,-480.0,0.00019726,2]
[387217822,1758653447457,-476.3215561,0.0001977,2]
[387217823,1758653447467,-4916.98076904,0.000199,2]
[387217824,1758653447477,-258.41882043,0.00019952,2]
[387217825,1758653447490,-372.29,0.0001999,3]
[387217826,1758653447499,-1000.0,0.00019999,2]
[387217827,1758653447509,-1000.0,0.00019999,2]
[387217828,1758653447518,-312.5358164,0.00019999,2]
[387217829,1758653447529,-151.0,0.0002,2]
[387217830,1758653447538,-480.0,0.0002,2]
[387217831,1758653447547,-480.0,0.0002,2]
[387217832,1758653447557,-151.0,0.0002,2]
[387217833,1758653447567,-151.0,0.0002,2]
[387217834,1758653447576,-480.0,0.0002,2]
[387217835,1758653447585,-480.0,0.0002,2]
[387217836,1758653447595,-500.0,0.0002,2]
[387217837,1758653447604,-151.0,0.0002,2]
[387217838,1758653447614,-152.56925732,0.0002,2]
[387217839,1758653447624,-151.0,0.0002,2]
[387217840,1758653447633,-480.0,0.0002,2]
[387217841,1758653447643,-5818.2,0.0002,2]
[387217842,1758653447652,-480.0,0.0002,2]
[387217843,1758653447662,-476.3215561,0.0002,2]
[387217844,1758653447671,-480.0,0.0002,2]
[387217845,1758653447682,-824.39,0.0002,2]
[387217846,1758653447691,-480.0,0.0002,2]
[387217847,1758653447700,-634.53,0.0002,2]
[387217848,1758653447710,-618.57,0.0002,2]
[387217849,1758653447719,-620.34420218,0.0002,2]
[387217850,1758653447729,-480.0,0.0002,2]
[387217851,1758653447739,-774.38,0.0002,2]
[387217852,1758653447748,-480.0,0.0002,2]
[387217853,1758653447757,-12616.56,0.0002,2]
[387217854,1758653447767,-480.0,0.0002,2]
[387217856,1758653447777,-784.83,0.0002,2]
[387217857,1758653447786,-480.0,0.0002,2]
[387217858,1758653447796,-480.0,0.0002,2]
[387217859,1758653447805,-480.0,0.0002,2]
[387217860,1758653447814,-2261.33,0.0002,2]
[387217861,1758653447823,-209.92580762,0.0002,2]
[387217862,1758653447833,-480.0,0.0002,2]
[387217863,1758653447842,-151.0,0.0002,2]
[387217865,1758653447851,-151.0,0.0002,2]
[387217867,1758653447860,-1706.17,0.0002,2]
[387217869,1758653447870,-480.0,0.0002,2]
[387217871,1758653447879,-480.0,0.0002,2]
[387217873,1758653447888,-750.05,0.0002,2]
[387217875,1758653447897,-480.0,0.0002,2]
[387217877,1758653447906,-151.0,0.0002,2]
[387217879,1758653447917,-500.0,0.0002,2]
[387217881,1758653447925,-151.42773969,0.0002,2]
[387217883,1758653447935,-151.0,0.0002,2]
[387217885,1758653447944,-151.0,0.0002,2]
[387217887,1758653447953,-151.0,0.0002,2]
[387217889,1758653447962,-480.0,0.0002,2]
[387217890,1758653447971,-221.03,0.0002,2]
[387217892,1758653447981,-480.0,0.0002,2]
[387217894,1758653447990,-577.17,0.0002,2]
[387217896,1758653447999,-882.53,0.0002,2]
[387217898,1758653448008,-480.0,0.0002,2]
[387217900,1758653448018,-480.0,0.0002,2]
[387217902,1758653448027,-712.24,0.0002,2]
[387217904,1758653448037,-480.0,0.0002,2]
[387217906,1758653448046,-480.0,0.0002,2]
[387217908,1758653448055,-480.0,0.0002,2]
[387217910,1758653448064,-480.0,0.0002,2]
[387217911,1758653448074,-1446.09,0.0002,2]
[387217913,1758653448083,-480.0,0.0002,2]
[387217915,1758653448092,-1015.51,0.0002,2]
[387217917,1758653448102,-1049.4,0.0002,2]
[387217919,1758653448113,-344.75,0.0002,2]
[387217921,1758653448122,-566.08,0.0002,2]
[387217923,1758653448131,-633.65,0.0002,2]
[387217925,1758653448142,-2140.62,0.0002,2]
[387217927,1758653448151,-480.0,0.0002,2]
[387217929,1758653448161,-3065.16,0.0002,2]
[387217930,1758653448170,-151.0,0.0002,2]
[387217932,1758653448180,-151.0,0.0002,2]
[387217934,1758653448190,-480.0,0.0002,2]
[387217936,1758653448200,-503.46314464,0.00020073,2]
[387217937,1758653448209,-500.0,0.00020073,2]
[387217938,1758653448219,-500.0,0.00020073,2]
[387217939,1758653448229,-500.0,0.00020073,2]
[387217940,1758653448238,-501.12478516,0.00020073,2]
[387217941,1758653448248,-501.61266007,0.00020073,2]
[387217942,1758653448259,-500.0,0.00020073,2]
[387217944,1758653448268,-640.3741834,0.00020073,2]
[387217946,1758653448277,-164.76717176,0.00020073,2]
[387217947,1758653448286,-500.0,0.00020073,2]
[387217948,1758653448296,-500.0,0.00020073,2]
[387217949,1758653448305,-580.39495328,0.00020073,2]
[387217950,1758653448314,-278.92333062,0.00020073,2]
[387217951,1758653448324,-501.70713422,0.00020073,2]
[387217952,1758653448333,-500.0,0.00020073,2]
[387217953,1758653448343,-500.0,0.00020073,2]
[387217954,1758653448445,-500.98446213,0.00020073,2]
[387217955,1758653448456,-500.54741143,0.00020073,2]
[387217956,1758653448466,-501.0900848,0.00020073,2]
[387217957,1758653448476,-500.0,0.00020073,2]
[387217958,1758653448488,-500.0,0.00020073,2]
[387217959,1758653448498,-500.0,0.00020073,2]
[387217960,1758653448507,-508.58252175,0.00020073,2]
[387217961,1758653448516,-500.0,0.00020073,2]
[387217962,1758653448527,-500.0,0.00020073,2]
[387217963,1758653448536,-1248.8355499,0.00020094,2]
[387217964,1758653448545,-500.73826782,0.000201,2]
[387217965,1758653448556,-326239.87504889,0.000201,2]
[387217966,1758653448565,-151.0,0.000201,2]
[387217967,1758653448575,-151.0,0.000201,2]
[387217968,1758653448584,-151.0,0.000201,2]
[387217969,1758653448594,-175.913928,0.000201,2]
[387217970,1758653448603,-2322.9426463,0.00020114,2]
[387217971,1758653448613,-211.34105432,0.00020184,2]
[387217972,1758653448622,-160.0,0.00020185,2]
[387217973,1758653448632,-160.0,0.00020185,2]
[387217974,1758653448642,-160.0,0.00020185,2]
[387217975,1758653448652,-233.58652103,0.00020185,2]
[387217976,1758653448662,-417.15472785,0.00020185,2]
[387217977,1758653448672,-160.0,0.00020185,2]
[387217978,1758653448682,-160.0,0.00020185,2]
[387217979,1758653448691,-160.0,0.00020185,2]
[387217980,1758653448702,-160.0,0.00020185,2]
[387217981,1758653448713,-54425.59661124,0.000202,2]
[387217982,1758653448723,-209.76249034,0.00020251,2]
[387217983,1758653448732,-480.0,0.00020273,2]
[387217984,1758653448745,-480.0,0.00020273,2]
[387217985,1758653448754,-480.0,0.00020273,2]
[387217986,1758653448764,-480.0,0.00020273,2]
[387217987,1758653448773,-5818.2,0.00020273,2]
[387217988,1758653448783,-480.0,0.00020273,2]
[387217989,1758653448792,-480.0,0.00020273,2]
[387217990,1758653448801,-824.39,0.00020273,2]
[387217991,1758653448812,-480.0,0.00020273,2]
[387217992,1758653448821,-634.53,0.00020273,2]
[387217993,1758653448831,-618.57,0.00020273,2]
[387217994,1758653448840,-480.0,0.00020273,2]
[387217995,1758653448850,-774.38,0.00020273,2]
[387217996,1758653448860,-480.0,0.00020273,2]
[387217997,1758653448870,-12616.56,0.00020273,2]
[387217998,1758653448879,-480.0,0.00020273,2]
[387217999,1758653448889,-784.83,0.00020273,2]
[387218000,1758653448899,-480.0,0.00020273,2]
[387218001,1758653448909,-480.0,0.00020273,2]
[387218002,1758653448919,-2261.33,0.00020273,2]
[387218003,1758653448929,-480.0,0.00020273,2]
[387218004,1758653448940,-1706.17,0.00020273,2]
[387218005,1758653448950,-480.0,0.00020273,2]
[387218006,1758653448959,-480.0,0.00020273,2]
[387218007,1758653448969,-750.05,0.00020273,2]
[387218008,1758653448979,-480.0,0.00020273,2]
[387218009,1758653448989,-480.0,0.00020273,2]
[387218010,1758653448998,-480.0,0.00020273,2]
[387218011,1758653449008,-577.17,0.00020273,2]
[387218012,1758653449017,-882.53,0.00020273,2]
[387218013,1758653449027,-480.0,0.00020273,2]
[387218014,1758653449037,-480.0,0.00020273,2]
[387218015,1758653449047,-712.24,0.00020273,2]
[387218016,1758653449056,-480.0,0.00020273,2]
[387218017,1758653449067,-480.0,0.00020273,2]
[387218018,1758653449077,-480.0,0.00020273,2]
[387218019,1758653449086,-1446.09,0.00020273,2]
[387218020,1758653449096,-480.0,0.00020273,2]
[387218021,1758653449105,-1015.51,0.00020273,2]
[387218022,1758653449116,-1049.4,0.00020273,2]
[387218023,1758653449126,-566.08,0.00020273,2]
[387218024,1758653449135,-633.65,0.00020273,2]
[387218026,1758653449145,-2140.62,0.00020273,2]
[387218027,1758653449154,-480.0,0.00020273,2]
[387218029,1758653449164,-3065.16,0.00020273,2]
[387218030,1758653449174,-480.0,0.00020273,2]
[387218031,1758653449186,-151.0,0.00020274,2]
[387218032,1758653449195,-151.0,0.00020274,2]
[387218033,1758653449206,-500.0,0.00020274,2]
[387218034,1758653449215,-295.69141765,0.00020274,2]
[387218035,1758653449225,-151.0,0.00020274,2]
[387218036,1758653449235,-151.0,0.00020274,2]
[387218037,1758653449245,-151.0,0.00020274,2]
[387218038,1758653449254,-500.0,0.00020274,2]
[387218040,1758653449263,-152.52821439,0.00020274,2]
[387218042,1758653449273,-151.0,0.00020274,2]
[387218043,1758653449283,-151.58582936,0.00020274,2]
[387218044,1758653449292,-151.0,0.00020274,2]
[387218045,1758653449302,-810.00009611,0.000203,2]
[387218046,1758653449311,-151.0,0.000204,3]
[387218047,1758653449321,-160.0,0.0002045,2]
[387218048,1758653449331,-2134.82,0.00020508,2]
[387218049,1758653449341,-2717.88,0.00020538,3]
[387218050,1758653449350,-1358.94,0.00020538,3]
[387218051,1758653449360,-566.22,0.00020538,3]
[387218052,1758653449369,-151.0,0.00020547,2]
[387218053,1758653449379,-151.0,0.00020547,2]
[387218054,1758653449389,-151.0,0.00020547,2]
[387218056,1758653449399,-480.0,0.00020547,2]
[387218058,1758653449408,-480.0,0.00020547,2]
[387218060,1758653449417,-480.0,0.00020547,2]
[387218062,1758653449427,-480.0,0.00020547,2]
[387218064,1758653449437,-5818.2,0.00020547,2]
[387218066,1758653449446,-480.0,0.00020547,2]
[387218068,1758653449455,-480.0,0.00020547,2]
[387218069,1758653449464,-824.39,0.00020547,2]
[387218071,1758653449473,-480.0,0.00020547,2]
[387218073,1758653449487,-634.53,0.00020547,2]
[387218075,1758653449496,-618.57,0.00020547,2]
[387218077,1758653449506,-480.0,0.00020547,2]
[387218079,1758653449516,-774.38,0.00020547,2]
[387218080,1758653449529,-185.01518799,0.00020547,2]
[387218081,1758653449538,-12616.56,0.00020547,2]
[387218082,1758653449548,-480.0,0.00020547,2]
[387218083,1758653449561,-784.83,0.00020547,2]
[387218084,1758653449570,-480.0,0.00020547,2]
[387218085,1758653449580,-480.0,0.00020547,2]
[387218086,1758653449589,-2261.33,0.00020547,2]
[387218087,1758653449598,-480.0,0.00020547,2]
[387218088,1758653449607,-1706.17,0.00020547,2]
[387218089,1758653449616,-480.0,0.00020547,2]
[387218090,1758653449625,-480.0,0.00020547,2]
[387218091,1758653449635,-750.05,0.00020547,2]
[387218092,1758653449644,-480.0,0.00020547,2]
[387218094,1758653449654,-480.0,0.00020547,2]
[387218096,1758653449663,-480.0,0.00020547,2]
[387218098,1758653449672,-577.17,0.00020547,2]
[387218099,1758653449682,-882.53,0.00020547,2]
[387218100,1758653449692,-480.0,0.00020547,2]
[387218101,1758653449702,-344.26961478,0.00020547,2]
[387218102,1758653449711,-712.24,0.00020547,2]
[387218103,1758653449721,-480.0,0.00020547,2]
[387218104,1758653449731,-480.0,0.00020547,2]
[387218105,1758653449741,-480.0,0.00020547,2]
[387218106,1758653449750,-1446.09,0.00020547,2]
[387218107,1758653449760,-480.0,0.00020547,2]
[387218108,1758653449770,-1015.51,0.00020547,2]
[387218109,1758653449780,-1049.4,0.00020547,2]
[387218110,1758653449790,-566.08,0.00020547,2]
[387218111,1758653449799,-633.65,0.00020547,2]
[387218112,1758653449809,-2140.62,0.00020547,2]
[387218113,1758653449819,-480.0,0.00020547,2]
[387218114,1758653449829,-1112.92460329,0.00020547,2]
[387218115,1758653449844,-1952.23539671,0.00020547,2]
[387218116,1758653449854,-480.0,0.00020547,2]
[387218117,1758653449863,-151.0,0.00020548,2]
[387218118,1758653449874,-500.0,0.00020548,2]
[387218119,1758653449883,-151.0,0.00020548,2]
[387218120,1758653449894,-9.45625045,0.00020548,2]
[387218141,1758653506156,800.0,0.0002739,120]
[387218142,1758653510400,302.0,0.00027397,120]
[387218174,1758653619913,300.0,0.00027397,120]
[387218190,1758653694195,151.0,0.00027397,120]
[387218192,1758653788208,151.0,0.00027397,120]
[387218193,1758653935648,300.0,0.00027397,120]
[387218204,1758654250059,300.0,0.00027397,120]
[387218206,1758654327270,498.24869784,0.00029261,60]
[387218207,1758654590514,569.659608,0.00027397,120]
[387218226,1758654632333,-164.60519,0.00018076,2]
[387218227,1758654632342,-8725.59481002,0.00018273,2]
[387218230,1758654632354,-625.07626708,0.00018273,2]
[387218232,1758654632364,-300.0,0.00018976,2]
[387218234,1758654632373,-300.0,0.00018976,2]
[387218236,1758654632382,-300.0,0.00018976,2]
[387218238,1758654632392,-300.0,0.00018976,2]
[387218239,1758654632400,-46.33340805,0.00018976,2]
[387218242,1758654632412,-253.66659195,0.00018976,2]
[387218244,1758654632422,-1200.0,0.00018977,2]
[387218246,1758654632432,-199.40114893,0.00018978,2]
[387218248,1758654632441,-194.55846879,0.00018978,2]
[387218250,1758654632451,-227.24476815,0.00019078,2]
[387218255,1758654632478,-108.62426236,0.00019078,2]
[387218257,1758654632487,-1221.12992035,0.00019078,2]
[387218259,1758654632497,-4997.54265028,0.00019078,2]
[387218261,1758654632508,-1680.06780001,0.00019078,2]
[387218348,1758654638272,-6427.62611293,0.00019078,2]
[387218349,1758654638284,-4827.42999668,0.00019078,2]
[387218350,1758654638293,-9753.78907152,0.00019078,2]
[387218355,1758654640265,-427.6330832,0.00019078,2]
[387218356,1758654640318,-5971.0171998,0.00019078,2]
[387218357,1758654640328,-500.0,0.00019177,2]
[387218358,1758654640337,-157.5,0.00019177,2]
[387218359,1758654640347,-432.10060372,0.00019177,2]
[387218360,1758654640356,-500.0,0.00019177,2]
[387218361,1758654640365,-192.57993408,0.00019177,2]
[387218362,1758654640375,-490.0,0.00019177,2]
[387218363,1758654640384,-454.23509405,0.00019178,2]
[387218364,1758654640394,-480.0,0.00019178,2]
[387218365,1758654640403,-480.0,0.00019178,2]
[387218366,1758654640414,-480.0,0.00019178,2]
[387218367,1758654640429,-480.0,0.00019178,2]
[387218368,1758654640439,-480.0,0.00019178,2]
[387218369,1758654640448,-480.0,0.00019178,2]
[387218370,1758654640458,-504.90404253,0.00019178,2]
[387218371,1758654640467,-482.52040208,0.00019178,2]
[387218372,1758654640476,-480.0,0.00019178,2]
[387218373,1758654640486,-480.0,0.00019178,2]
[387218374,1758654640496,-473.42801258,0.00019178,2]
[387218375,1758654640507,-480.0,0.00019178,2]
[387218376,1758654640518,-293.78569639,0.00019178,2]
[387218377,1758654640527,-480.0,0.00019178,2]
[387218378,1758654640537,-480.0,0.00019178,2]
[387218379,1758654640547,-270.87521045,0.00019178,2]
[387218380,1758654640557,-480.0,0.00019178,2]
[387218381,1758654640566,-480.0,0.00019178,2]
[387218382,1758654640576,-480.0,0.00019178,2]
[387218383,1758654640585,-480.0,0.00019178,2]
[387218384,1758654640594,-480.0,0.00019178,2]
[387218385,1758654640604,-480.0,0.00019178,2]
[387218386,1758654640613,-480.0,0.00019178,2]
[387218387,1758654640623,-480.0,0.00019178,2]
[387218388,1758654640632,-480.0,0.00019178,2]
[387218389,1758654640642,-480.0,0.00019178,2]
[387218390,1758654640651,-650.34,0.00019178,2]
[387218391,1758654640660,-480.0,0.00019178,2]
[387218392,1758654640670,-480.0,0.00019178,2]
[387218393,1758654640680,-841.64,0.00019178,2]
[387218394,1758654640689,-1799.09,0.00019178,2]
[387218395,1758654640698,-480.0,0.00019178,2]
[387218396,1758654640708,-480.0,0.00019178,2]
[387218397,1758654640718,-480.0,0.00019178,2]
[387218398,1758654640727,-480.0,0.00019178,2]
[387218399,1758654640736,-480.0,0.00019178,2]
[387218400,1758654640746,-480.0,0.00019178,2]
[387218401,1758654640758,-4429.26344276,0.00019178,2]
[387218404,1758654643445,-5260.90655724,0.00019178,2]
[387218405,1758654643455,-480.0,0.00019178,2]
[387218406,1758654643465,-480.0,0.00019178,2]
[387218407,1758654643475,-1711.23,0.00019178,2]
[387218408,1758654643484,-4443.65,0.00019178,2]
[387218409,1758654643493,-480.0,0.00019178,2]
[387218410,1758654643503,-480.0,0.00019178,2]
[387218411,1758654643513,-480.0,0.00019178,2]
[387218412,1758654643522,-480.0,0.00019178,2]
[387218413,1758654643532,-678.29,0.00019178,2]
[387218414,1758654643542,-480.0,0.00019178,2]
[387218415,1758654643551,-480.0,0.00019178,2]
[387218416,1758654643561,-480.0,0.00019178,2]
[387218417,1758654643570,-2631.84,0.00019178,2]
[387218418,1758654643579,-480.0,0.00019178,2]
[387218419,1758654643589,-543.93,0.00019178,2]
[387218420,1758654643598,-488.91484129,0.00019178,2]
[387218421,1758654643607,-480.0,0.00019178,2]
[387218423,1758654643617,-582.68,0.00019178,2]
[387218425,1758654643626,-660.78,0.00019178,2]
[387218428,1758654643635,-480.0,0.00019178,2]
[387218430,1758654643645,-480.0,0.00019178,2]
[387218431,1758654643654,-480.0,0.00019178,2]
[387218432,1758654643663,-480.0,0.00019178,2]
[387218433,1758654643673,-402.55409344,0.00019178,2]
[387218434,1758654643760,-77.44590656,0.00019178,2]
[387218435,1758654643770,-497.36,0.00019178,2]
[387218436,1758654643780,-555.24,0.00019178,2]
[387218437,1758654643789,-270.32286464,0.00019178,2]
[387218438,1758654643801,-383.29713536,0.00019178,2]
[387218439,1758654643814,-480.0,0.00019178,2]
[387218440,1758654643824,-480.0,0.00019178,2]
[387218441,1758654643834,-106.10286454,0.00019178,2]
[387218442,1758654643851,-373.89713546,0.00019178,2]
[387218443,1758654643861,-28.10028854,0.00019178,2]
[387218444,1758654643873,-1368.36971146,0.00019178,2]
[387218445,1758654643884,-480.0,0.00019178,2]
[387218446,1758654643893,-480.0,0.00019178,2]
[387218447,1758654643902,-480.0,0.00019178,2]
[387218448,1758654643912,-500.0,0.00019178,2]
[387218449,1758654643922,-444.30858277,0.00019178,2]
[387218450,1758654643935,-149.87141723,0.00019178,2]
[387218451,1758654643945,-500.0,0.00019178,2]
[387218452,1758654643954,-480.0,0.00019178,2]
[387218453,1758654643963,-480.0,0.00019178,2]
[387218454,1758654643973,-622.12,0.00019178,2]
[387218455,1758654643983,-480.0,0.00019178,2]
[387218456,1758654643995,-522.06337017,0.00019178,2]
[387218457,1758654644007,-480.0,0.00019178,2]
[387218458,1758654644016,-480.0,0.00019178,2]
[387218459,1758654644026,-480.0,0.00019178,2]
[387218460,1758654644035,-231.4204598,0.00019178,2]
[387218461,1758654644045,-480.0,0.00019178,2]
[387218462,1758654644054,-499.85,0.00019178,2]
[387218463,1758654644064,-430.44848984,0.00019178,2]
[387218464,1758654644074,-480.0,0.00019178,2]
[387218465,1758654644083,-480.0,0.00019178,2]
[387218466,1758654644093,-480.0,0.00019178,2]
[387218467,1758654644103,-787.05,0.00019178,2]
[387218468,1758654644112,-1180.72,0.00019178,2]
[387218469,1758654644121,-480.0,0.00019178,2]
[387218470,1758654644130,-741.9,0.00019178,2]
[387218471,1758654644140,-480.0,0.00019178,2]
[387218473,1758654644149,-480.0,0.00019178,2]
[387218474,1758654644159,-480.0,0.00019178,2]
[387218475,1758654644168,-480.0,0.00019178,2]
[387218476,1758654644178,-484.56,0.00019178,2]
[387218477,1758654644188,-1724.13,0.00019178,2]
[387218478,1758654644198,-500.0,0.00019178,2]
[387218479,1758654644208,-211.0,0.00019178,3]
[387218480,1758654644218,-335.8690305,0.00019352,2]
[387218481,1758654644227,-744.47,0.00019442,3]
[387218482,1758654644236,-455.02723248,0.00019452,2]
[387218494,1758654646382,-24.97276752,0.00019452,2]
[387218495,1758654646392,-480.0,0.00019452,2]
[387218496,1758654646402,-230.07687562,0.00019452,2]
[387218497,1758654646413,-249.92312438,0.00019452,2]
[387218498,1758654646423,-227.79170475,0.00019452,2]
[387218499,1758654646433,-480.0,0.00019452,2]
[387218501,1758654646442,-480.0,0.00019452,2]
[387218503,1758654646451,-422.66838483,0.00019452,2]
[387218504,1758654646460,-480.0,0.00019452,2]
[387218505,1758654646469,-469.74137551,0.00019452,2]
[387218506,1758654646478,-570.41351594,0.00019452,2]
[387218514,1758654827306,553.9,0.00024,30]
[387218517,1758654871875,300.0,0.00027397,120]
[387218531,1758655185375,427.66375998,0.00027397,120]
[387218570,1758655614972,5000.0,0.0002926,90]
[387218581,1758655677986,160.23854526,0.00025,120]
[387218593,1758655722274,512.93430007,0.00025,120]
[387218698,1758655832838,-174.690978,0.00018172,2]
[387218700,1758655832850,-170.45880372,0.00019078,2]
[387218730,1758655838572,-4.01720162,0.00019078,2]
[387218731,1758655838584,-300.0,0.00019175,2]
[387218733,1758655838596,-300.0,0.00019175,2]
[387218735,1758655838606,-4681.63210013,0.00019176,2]
[387218737,1758655838619,-5496.63764001,0.00019176,2]
[387218760,1758655840508,-73634.0166582,0.00019176,2]
[387218793,1758655843632,-7776.70087273,0.00019176,2]
[387218795,1758655843644,-2239.81929005,0.00019176,2]
[387218801,1758655845739,-16309.30577152,0.00019176,2]
[387218802,1758655845753,-417.25999999,0.00019176,2]
[387218803,1758655845765,-1022.66213513,0.00019176,2]
[387218804,1758655845776,-810.59189696,0.00019176,2]
[387218810,1758655846474,-434.16256367,0.00019176,2]
[387218812,1758655846483,-230.50463946,0.00019177,2]
[387218813,1758655846529,-269.49536054,0.00019177,2]
[387218814,1758655846538,-500.0,0.00019177,2]
[387218815,1758655846547,-419.96973335,0.00019177,2]
[387218816,1758655846557,-187.67935162,0.00019177,2]
[387218817,1758655846566,-500.0,0.00019177,2]
[387218818,1758655846576,-435.63280189,0.00019177,2]
[387218819,1758655846585,-500.0,0.00019177,2]
[387218820,1758655846596,-500.0,0.00019177,2]
[387218821,1758655846606,-500.0,0.00019177,2]
[387218822,1758655846615,-500.0,0.00019177,2]
[387218823,1758655846625,-500.0,0.00019177,2]
[387218824,1758655846635,-250.36913391,0.00019178,2]
[387218825,1758655846644,-482.111047,0.00019178,2]
[387218826,1758655846653,-480.0,0.00019178,2]
[387218827,1758655846663,-480.0,0.00019178,2]
[387218828,1758655846673,-480.0,0.00019178,2]
[387218829,1758655846684,-480.0,0.00019178,2]
[387218830,1758655846693,-480.0,0.00019178,2]
[387218831,1758655846702,-480.0,0.00019178,2]
[387218832,1758655846712,-599.48,0.00019178,2]
[387218833,1758655846723,-241.91584758,0.00019178,2]
[387218834,1758655846735,-480.0,0.00019178,2]
[387218835,1758655846744,-480.0,0.00019178,2]
[387218836,1758655846753,-480.0,0.00019178,2]
[387218837,1758655846764,-480.0,0.00019178,2]
[387218838,1758655846774,-480.0,0.00019178,2]
[387218839,1758655846783,-480.0,0.00019178,2]
[387218840,1758655846792,-480.0,0.00019178,2]
[387218841,1758655846801,-492.28743693,0.00019178,2]
[387218842,1758655846884,-480.0,0.00019178,2]
[387218843,1758655846917,-480.0,0.00019178,2]
[387218844,1758655846927,-480.0,0.00019178,2]
[387218845,1758655846937,-1131.53,0.00019178,2]
[387218846,1758655846946,-596.2,0.00019178,2]
[387218847,1758655846955,-480.0,0.00019178,2]
[387218848,1758655846964,-480.0,0.00019178,2]
[387218849,1758655846973,-1717.45,0.00019178,2]
[387218850,1758655846981,-4291.21,0.00019178,2]
[387218851,1758655846991,-480.0,0.00019178,2]
[387218852,1758655846999,-650.03,0.00019178,2]
[387218853,1758655847009,-480.0,0.00019178,2]
[387218854,1758655847020,-521.26,0.00019178,2]
[387218855,1758655847029,-480.0,0.00019178,2]
[387218856,1758655847038,-480.0,0.00019178,2]
[387218857,1758655847048,-633.25,0.00019178,2]
[387218858,1758655847057,-2522.18,0.00019178,2]
[387218859,1758655847066,-480.0,0.00019178,2]
[387218860,1758655847075,-480.0,0.00019178,2]
[387218861,1758655847084,-1710.73,0.00019178,2]
[387218862,1758655847093,-480.0,0.00019178,2]
[387218863,1758655847103,-480.0,0.00019178,2]
[387218864,1758655847112,-480.0,0.00019178,2]
[387218865,1758655847122,-480.0,0.00019178,2]
[387218866,1758655847131,-626.39,0.00019178,2]
[387218867,1758655847141,-480.0,0.00019178,2]
[387218868,1758655847150,-480.0,0.00019178,2]
[387218869,1758655847160,-1338.29,0.00019178,2]
[387218870,1758655847170,-480.0,0.00019178,2]
[387218871,1758655847180,-480.0,0.00019178,2]
[387218872,1758655847190,-5665.03831194,0.00019178,2]
[387218873,1758655847204,-650.998744,0.00019178,2]
[387218875,1758656031077,427.244706,0.00027397,120]
[387218904,1758657010168,320.433529,0.00027397,120]
[387219339,1758657037475,-300.0,0.00019177,2]
[387219340,1758657037485,-376.69209221,0.00019177,2]
[387219341,1758657037495,-500.0,0.00019177,2]
[387219342,1758657037504,-500.0,0.00019177,2]
[387219343,1758657037514,-588.66693063,0.00019177,2]
[387219344,1758657037524,-480.0,0.00019178,2]
[387219346,1758657037534,-192.81884626,0.00019178,2]
[387219348,1758657037544,-480.0,0.00019178,2]
[387219350,1758657037554,-594.5,0.00019178,2]
[387219352,1758657037564,-559.74573194,0.00019178,2]